bitfinex/quotes_BTCUSD_20220226
["timestamp","ask_amount","ask_price","bid_price","bid_amount"]
[1645854233378,0.8,39126.0,39121.0,0.36929986]
[1645854233578,0.12533,39125.0,39121.0,0.092]
[1645854233824,1.15,39123.0,39117.0,0.4783939]
[1645854234022,0.20253249,39118.0,39117.0,0.00038322]
[1645854234226,0.20253249,39118.0,39102.0,0.43087238]
[1645854234227,1.15,39116.0,39102.0,0.43087238]
[1645854234425,0.19324674,39108.0,39101.0,0.04]
[1645854234626,0.19324674,39108.0,39102.0,0.01022]
[1645854234823,0.12788058,39109.0,39108.0,0.10477278]
[1645854235029,0.12788058,39109.0,39108.0,0.08477278]
[1645854235627,0.06393829,39110.0,39108.0,0.08477278]
[1645854236026,0.06393829,39110.0,39108.0,0.18477278]
[1645854237771,0.06393829,39110.0,39108.0,0.40033405]
[1645854238370,0.06393829,39110.0,39109.0,0.21556127]
[1645854239572,0.06393829,39110.0,39108.0,0.18511846]
[1645854240078,0.06393829,39110.0,39108.0,0.18477278]
[1645854241071,0.127883,39117.0,39108.0,0.18477278]
[1645854241320,1.83633094,39121.0,39108.0,0.18477278]
[1645854241520,0.00016468,39120.0,39108.0,0.18477278]
[1645854241719,0.00016468,39120.0,39108.0,0.13477278]
[1645854241921,0.02533,39119.0,39108.0,0.13477278]
[1645854242220,0.00016468,39120.0,39108.0,0.13477278]
[1645854242628,0.063933,39113.0,39108.0,0.13477278]
[1645854243924,0.063933,39113.0,39108.0,0.08477278]
[1645854244826,0.127883,39117.0,39114.0,0.18659071]
[1645854245462,0.0639315,39116.0,39114.0,0.18659071]
[1645854248463,0.0630211,39116.0,39114.0,0.18659071]
[1645854251924,0.0630211,39116.0,39114.0,0.1866686]
[1645854252325,0.0630211,39116.0,39114.0,0.1416686]
[1645854257321,0.0630211,39116.0,39115.0,0.46161315]
[1645854257519,0.063934,39118.0,39114.0,0.1416686]
[1645854257719,0.063934,39118.0,39114.0,0.1456686]
[1645854257921,0.46473814,39117.0,39114.0,0.1456686]
[1645854258323,0.02533,39116.0,39114.0,0.1456686]
[1645854258519,0.02533,39116.0,39114.0,0.14600836]
[1645854258721,0.02533,39116.0,39114.0,0.14200836]
[1645854259020,0.089264,39118.0,39114.0,0.14200836]
[1645854259221,0.063934,39118.0,39114.0,0.14200836]
[1645854259424,0.12786616,39117.0,39114.0,0.1416686]
[1645854259627,0.12786688,39118.0,39114.0,0.14200835]
[1645854260260,0.12786688,39118.0,39114.0,0.24200835]
[1645854260665,0.12786688,39118.0,39114.0,0.2416686]
[1645854262966,0.7324,39121.0,39114.0,0.2416686]
[1645854263169,0.7324,39121.0,39115.0,0.0507]
[1645854263367,0.7324,39121.0,39115.0,0.8238]
[1645854263665,0.7324,39121.0,39115.0,0.0507]
[1645854264312,0.73173492,39121.0,39115.0,0.0507]
[1645854264513,0.73173492,39121.0,39116.0,0.00034001]
[1645854264715,0.73173492,39121.0,39116.0,0.05104001]
[1645854264914,0.07533143,39121.0,39116.0,0.05104001]
[1645854265315,0.07533143,39121.0,39116.0,0.00034001]
[1645854265513,0.07533143,39121.0,39114.0,0.2416686]
[1645854265718,0.54470535,39121.0,39117.0,0.00034001]
[1645854265913,0.07533143,39121.0,39117.0,0.00034001]
[1645854266221,0.02533,39120.0,39117.0,0.00034001]
[1645854266514,0.07533143,39121.0,39117.0,0.00034001]
[1645854266716,0.15,39119.0,39114.0,0.1416686]
[1645854266915,0.73331692,39118.0,39117.0,0.00034001]
[1645854267113,0.73331692,39118.0,39114.0,0.1416686]
[1645854267114,0.263943,39118.0,39114.0,0.13700861]
[1645854267414,0.063943,39118.0,39115.0,0.46937392]
[1645854267670,0.01033996,39122.0,39117.0,0.002]
[1645854267868,0.01,39122.0,39117.0,0.002]
[1645854268872,0.01,39122.0,39117.0,0.0015422]
[1645854269075,0.01,39122.0,39115.0,0.68247739]
[1645854269272,0.01,39122.0,39118.0,0.0507]
[1645854269571,0.01,39122.0,39119.0,0.46937392]
[1645854269772,0.01,39122.0,39118.0,0.0507]
[1645854270072,0.01,39122.0,39119.0,0.46937392]
[1645854270473,0.01,39122.0,39119.0,0.56937392]
[1645854271074,0.01,39122.0,39119.0,0.05]
[1645854271328,1.0066,39124.0,39119.0,0.1]
[1645854271329,0.44034735,39124.0,39119.0,0.1]
[1645854271519,0.06391476,39125.0,39119.0,0.47034884]
[1645854271816,0.06391476,39125.0,39118.0,0.36626127]
[1645854271817,0.00033997,39122.0,39118.0,0.36626127]
[1645854272018,0.00033997,39122.0,39120.0,0.7731]
[1645854272221,0.00033997,39122.0,39121.0,0.52104884]
[1645854272418,0.00033997,39122.0,39121.0,1.29414884]
[1645854272618,0.00033997,39122.0,39121.0,1.51992011]
[1645854272820,1.0066,39129.0,39121.0,1.30435884]
[1645854273019,0.00033996,39123.0,39122.0,0.98886673]
[1645854273219,0.00033996,39123.0,39122.0,1.62012557]
[1645854273620,0.00033996,39123.0,39122.0,1.62212557]
[1645854273821,1.0066,39129.0,39122.0,1.62212557]
[1645854274021,1.0066,39129.0,39123.0,0.01021]
[1645854274221,0.00033996,39124.0,39123.0,0.01021]
[1645854274422,0.00033996,39124.0,39123.0,1.25365884]
[1645854274622,0.00033996,39124.0,39123.0,0.78331]
[1645854274821,0.00033996,39124.0,39123.0,1.25365884]
[1645854275068,1.0066,39129.0,39124.0,0.7731]
[1645854275270,1.0066,39129.0,39126.0,0.8231]
[1645854275469,1.0066,39129.0,39126.0,1.03892311]
[1645854275670,1.0066,39129.0,39126.0,1.10264327]
[1645854276073,1.0066,39129.0,39126.0,0.83331]
[1645854276367,1.0066,39129.0,39126.0,0.88401]
[1645854276569,0.00033994,39128.0,39126.0,1.15334327]
[1645854276769,0.00033994,39128.0,39126.0,0.88401]
[1645854277368,0.00033994,39128.0,39126.0,1.35435884]
[1645854277569,1.0066,39129.0,39126.0,1.35435884]
[1645854277771,0.00033994,39128.0,39126.0,1.35735884]
[1645854278270,0.00033994,39128.0,39126.0,1.62709335]
[1645854278470,0.00033994,39128.0,39126.0,0.35735884]
[1645854278675,1.0066,39133.0,39126.0,0.38268884]
[1645854278917,0.00033994,39128.0,39126.0,0.35435884]
[1645854279316,0.00033994,39128.0,39126.0,0.62412401]
[1645854279718,0.00033994,39128.0,39126.0,0.35735884]
[1645854279917,1.0066,39133.0,39126.0,0.35735884]
[1645854280117,0.00032921,39128.0,39126.0,0.40735884]
[1645854280919,0.00032921,39128.0,39126.0,0.40435884]
[1645854281117,1.0066,39133.0,39126.0,0.40435884]
[1645854281322,0.00032921,39128.0,39126.0,0.05]
[1645854281521,0.00032921,39128.0,39124.0,0.21578012]
[1645854281720,0.00032921,39128.0,39126.0,0.003]
[1645854282420,0.063907,39131.0,39126.0,0.003]
[1645854282667,0.00032921,39128.0,39126.0,0.003]
[1645854282867,0.0642408,39128.0,39123.0,0.21578012]
[1645854283067,0.010301,39127.0,39122.0,0.21578012]
[1645854283267,0.010301,39127.0,39122.0,0.31578012]
[1645854283666,0.010301,39127.0,39122.0,0.31878012]
[1645854283870,0.00031712,39126.0,39122.0,0.31878012]
[1645854284668,0.010301,39127.0,39122.0,0.31878012]
[1645854284867,0.010301,39127.0,39123.0,0.21578012]
[1645854285067,0.00031713,39126.0,39123.0,0.21578012]
[1645854285269,0.00031713,39126.0,39123.0,0.26578012]
[1645854285469,0.00031713,39126.0,39123.0,0.26578187]
[1645854285669,0.010301,39127.0,39126.0,0.00015324]
[1645854286618,0.010301,39127.0,39126.0,0.21593511]
[1645854287017,0.010301,39127.0,39126.0,0.31593511]
[1645854287617,0.010301,39127.0,39126.0,0.31793511]
[1645854288832,0.010301,39127.0,38570.0,0.01]
[1645854289026,0.010301,39127.0,39125.0,0.20575948]
[1645854289027,1.1,39126.0,39125.0,0.20575948]
[1645854289221,0.039351,39127.0,39125.0,0.20575948]
[1645854289624,0.039351,39127.0,39124.0,0.20575948]
[1645854290070,0.0386004,39127.0,39122.0,0.26969935]
[1645854290270,0.0386004,39127.0,39122.0,0.31969935]
[1645854290674,0.01,39123.0,39122.0,0.05]
[1645854290872,0.13783287,39123.0,39120.0,0.2018]
[1645854291070,0.13783287,39123.0,39120.0,0.002]
[1645854291272,0.13783287,39123.0,39118.0,0.25169935]
[1645854291871,0.13783287,39123.0,39118.0,0.21169935]
[1645854292270,0.13783287,39123.0,39118.0,0.17169935]
[1645854292271,0.00135981,39121.0,39118.0,0.17169935]
[1645854292873,0.00135981,39121.0,39114.0,0.34896923]
[1645854293073,0.00135981,39121.0,39117.0,0.32363923]
[1645854293275,0.0486004,39123.0,39120.0,0.34896923]
[1645854293473,0.0486004,39123.0,39121.0,0.32363923]
[1645854293673,0.0486004,39123.0,39122.0,0.32363923]
[1645854294117,0.0486004,39123.0,39122.0,0.37363923]
[1645854294518,0.0486004,39123.0,39122.0,0.05]
[1645854294717,0.0486004,39123.0,39121.0,0.37363923]
[1645854294919,0.0486004,39123.0,39121.0,0.1007]
[1645854295118,0.0486004,39123.0,39121.0,0.0507]
[1645854295721,0.0486004,39123.0,39121.0,0.37435459]
[1645854296323,0.1,39136.0,39123.0,0.79843]
[1645854296523,0.06388976,39137.0,39125.0,0.02533]
[1645854296722,0.06388976,39137.0,39127.0,0.02533]
[1645854296929,0.06388976,39137.0,39128.0,0.07603]
[1645854297123,0.1,39136.0,39129.0,0.0507]
[1645854297322,0.06388976,39137.0,39129.0,0.07603]
[1645854297582,0.191717,39138.0,39129.0,1.39593716]
[1645854297782,0.91068121,39142.0,39130.0,0.03554]
[1645854297986,0.127755,39145.0,39132.0,0.78843]
[1645854298180,0.127755,39145.0,39134.0,0.78843]
[1645854298381,0.127755,39145.0,39135.0,0.0507]
[1645854298781,0.127755,39145.0,39135.0,0.06091]
[1645854298980,0.127755,39145.0,39135.0,0.21001]
[1645854299180,0.127755,39145.0,39135.0,0.01021]
[1645854299382,0.127755,39145.0,39135.0,0.78331]
[1645854299586,0.0103399,39139.0,39136.0,0.54690726]
[1645854299782,0.0103399,39139.0,39137.0,0.01022]
[1645854299982,0.0103399,39139.0,39138.0,0.1998]
[1645854300284,0.0103399,39139.0,39138.0,0.2498]
[1645854300482,0.01,39139.0,39138.0,0.2498]
[1645854300683,0.01,39139.0,39136.0,0.01021]
[1645854301420,0.01,39137.0,39134.0,0.51940919]
[1645854301621,0.01,39137.0,39133.0,0.26960919]
[1645854301821,0.01,39137.0,39131.0,0.27560919]
[1645854302225,0.01,39137.0,39132.0,0.01022]
[1645854302226,0.01032723,39137.0,39132.0,0.01022]
[1645854302424,0.01032723,39137.0,39131.0,0.27560919]
[1645854302425,0.1,39133.0,39131.0,0.006]
[1645854302623,0.55250518,39132.0,39131.0,0.006]
[1645854302822,0.00797786,39130.0,39128.0,0.00032731]
[1645854303024,0.00797786,39130.0,39124.0,0.26960919]
[1645854303222,0.1,39129.0,39128.0,0.00032729]
[1645854303423,1.05,39129.0,39122.0,0.26960919]
[1645854303623,0.0639127,39127.0,39122.0,0.26960919]
[1645854303827,0.0639127,39127.0,39123.0,0.26960919]
[1645854304223,0.0639127,39127.0,39123.0,0.26460919]
[1645854304623,0.063912,39126.0,39123.0,0.26460919]
[1645854304829,0.163912,39126.0,39123.0,0.26460919]
[1645854305401,0.163912,39126.0,39123.0,0.31460919]
[1645854305602,0.0639127,39127.0,39120.0,0.32365459]
[1645854305804,0.0326957,39121.0,39118.0,0.32365459]
[1645854306003,0.09661614,39121.0,39117.0,0.32365459]
[1645854306203,0.0326957,39119.0,39117.0,0.32365459]
[1645854306501,0.0326957,39119.0,39116.0,0.32365459]
[1645854307102,0.61223382,39121.0,39114.0,0.32365459]
[1645854307103,0.0326957,39117.0,39114.0,0.32365459]
[1645854307301,0.0326957,39115.0,39114.0,0.32365459]
[1645854307509,0.0966297,39115.0,39113.0,0.52345459]
[1645854307701,0.16056049,39115.0,39113.0,0.32365459]
[1645854308403,0.01,39114.0,39113.0,0.32365459]
[1645854308602,0.00444209,39114.0,39113.0,1.07583388]
[1645854309021,0.001,39114.0,39113.0,0.5775205]
[1645854309218,0.001,39114.0,39113.0,1.29163444]
[1645854309420,0.001,39114.0,39113.0,2.00574838]
[1645854309819,0.001,39114.0,39113.0,2.02654126]
[1645854310026,0.001,39114.0,39033.0,5.46035643]
[1645854310222,0.001,39114.0,38542.0,0.033222]
[1645854310223,0.03949,39114.0,39112.0,0.32373371]
[1645854310424,0.03949,39114.0,39113.0,0.37769045]
[1645854310425,0.58384274,39114.0,39113.0,0.37769045]
[1645854310622,0.58384274,39114.0,39108.0,0.01021]
[1645854311524,0.81169288,39114.0,39108.0,0.01021]
[1645854311721,0.81169288,39114.0,39104.0,0.01022]
[1645854311722,0.163938,39110.0,39104.0,0.01022]
[1645854311922,0.001,39109.0,39104.0,0.01022]
[1645854312124,0.001,39109.0,39099.0,0.03820196]
[1645854312125,0.04,39101.0,39099.0,0.03820196]
[1645854312321,0.04,39101.0,39100.0,0.45]
[1645854312784,0.04,39101.0,39100.0,1.2231]
[1645854312983,0.04,39101.0,39100.0,0.7731]
[1645854313182,0.07949,39101.0,39100.0,1.34229686]
[1645854313383,0.07192101,39101.0,39100.0,1.21496495]
[1645854313982,0.07192101,39101.0,39100.0,1.26496495]
[1645854314384,0.011,39109.0,39102.0,0.00034]
[1645854314585,0.011,39109.0,39104.0,0.7731]
[1645854314783,0.0001,39109.0,39106.0,0.7731]
[1645854314983,0.0001,39109.0,39108.0,1.40446889]
[1645854315189,0.0001,39109.0,39108.0,1.75022]
[1645854315385,0.002,39120.0,39109.0,0.79843]
[1645854315583,0.002,39120.0,39111.0,0.9729]
[1645854315784,0.002,39120.0,39112.0,0.78331]
[1645854315984,0.002,39120.0,39114.0,0.7731]
[1645854316185,0.002,39120.0,39115.0,0.96677]
[1645854316424,0.001,39116.0,39115.0,1.01677]
[1645854317624,0.001,39116.0,39115.0,1.04205956]
[1645854318524,0.001,39116.0,39115.0,0.84225956]
[1645854322171,0.001,39116.0,39115.0,0.84025956]
[1645854324623,0.001,39116.0,39115.0,1.61335956]
[1645854325926,0.001,39116.0,39115.0,0.79225956]
[1645854325927,0.101,39116.0,39115.0,0.79225956]
[1645854326322,0.101,39116.0,39115.0,0.40873456]
[1645854327323,0.28317012,39116.0,39115.0,0.40873456]
[1645854327779,0.001,39116.0,39115.0,0.40873456]
[1645854328078,0.001,39116.0,39115.0,1.18183456]
[1645854328282,0.001,39116.0,39115.0,0.40873456]
[1645854328477,0.001,39116.0,39115.0,0.45873456]
[1645854328680,0.001,39116.0,39115.0,0.45866256]
[1645854329478,0.001,39116.0,39115.0,0.40873456]
[1645854329682,0.101,39116.0,39115.0,0.40873456]
[1645854329879,0.66169258,39116.0,39115.0,0.40873456]
[1645854330078,0.101,39116.0,39115.0,0.40873456]
[1645854330278,0.75,39115.0,39103.0,0.06022]
[1645854330480,0.56069258,39114.0,39103.0,0.01022]
[1645854330680,0.18554443,39105.0,39103.0,0.01022]
[1645854330883,0.06392852,39106.0,39104.0,0.76718]
[1645854331081,0.06392852,39106.0,39104.0,0.96698]
[1645854331317,0.06392852,39106.0,39104.0,0.76718]
[1645854331616,0.12785752,39106.0,39104.0,0.7667243]
[1645854332218,0.12785752,39106.0,39104.0,1.0165243]
[1645854332817,0.12785752,39106.0,39104.0,0.9665243]
[1645854334218,0.12785752,39106.0,39104.0,1.0165243]
[1645854334920,0.1,39105.0,39104.0,0.9665243]
[1645854335181,0.1,39105.0,39104.0,0.58286984]
[1645854335182,0.65918836,39105.0,39104.0,0.58286984]
[1645854335577,0.65918836,39105.0,39095.0,0.05]
[1645854335578,1.17533,39104.0,39095.0,0.05]
[1645854335778,1.17533,39104.0,39078.0,0.06424338]
[1645854335779,0.063959,39095.0,39088.0,0.43154677]
[1645854335985,0.21688227,39090.0,39088.0,0.43154677]
[1645854336179,0.06395964,39094.0,39090.0,0.03425531]
[1645854336379,0.16395964,39094.0,39092.0,0.1998]
[1645854336980,0.06395964,39094.0,39092.0,0.1998]
[1645854337481,0.1,39093.0,39092.0,0.1998]
[1645854337680,0.101,39093.0,39092.0,0.1998]
[1645854337879,0.101,39093.0,39091.0,0.10024014]
[1645854338079,0.55629648,39092.0,39090.0,0.03425531]
[1645854338281,0.1,39091.0,39090.0,0.03425531]
[1645854338585,0.65629648,39091.0,39090.0,0.03425531]
[1645854338818,0.06396634,39087.0,39081.0,0.43154677]
[1645854339223,0.1,39085.0,39079.0,0.43154677]
[1645854339620,0.1,39085.0,39078.0,0.4641345]
[1645854339821,0.68422654,39086.0,39079.0,1.56222177]
[1645854339822,0.54667349,39086.0,39079.0,1.56222177]
[1645854340021,1.070568,39089.0,39079.0,1.53526]
[1645854340222,1.070568,39089.0,39079.0,1.96680677]
[1645854340422,0.06396371,39084.0,39079.0,1.96680677]
[1645854340821,0.06396371,39084.0,39080.0,0.7731]
[1645854341022,0.06396371,39084.0,39081.0,0.7731]
[1645854341228,1.070568,39089.0,39080.0,0.55629648]
[1645854341229,1.0066,39089.0,39083.0,0.8731]
[1645854341421,1.0066,39089.0,39083.0,0.1]
[1645854341623,1.0066,39089.0,39081.0,0.05]
[1645854341822,1.0066,39089.0,39080.0,0.00656552]
[1645854342222,1.0066,39089.0,39080.0,1.335962]
[1645854342424,1.0066,39089.0,39084.0,0.00032855]
[1645854342670,1.0066,39089.0,39084.0,0.76842855]
[1645854342872,1.0066,39089.0,39085.0,0.76842855]
[1645854343069,1.0066,39089.0,39084.0,0.8731]
[1645854343270,1.0066,39089.0,39088.0,0.1746]
[1645854343476,1.0066,39089.0,39084.0,0.8731]
[1645854344074,1.0066,39089.0,39085.0,0.54886828]
[1645854344270,1.0066,39089.0,39084.0,0.1]
[1645854344671,1.070558,39089.0,39084.0,0.05]
[1645854344872,1.070558,39089.0,39088.0,0.32351296]
[1645854345070,1.070558,39089.0,39088.0,0.30351296]
[1645854345672,1.070558,39089.0,39087.0,0.1]
[1645854346172,1.070558,39089.0,39084.0,0.42742964]
[1645854346423,1.070558,39089.0,39084.0,0.47742964]
[1645854346821,1.070558,39089.0,39085.0,8.548e-05]
[1645854347018,1.070558,39089.0,39086.0,0.37742964]
[1645854347218,1.070558,39089.0,39086.0,0.05]
[1645854347418,1.070558,39089.0,39085.0,0.37751512]
[1645854347618,1.070558,39089.0,39086.0,0.37742964]
[1645854347817,1.070558,39089.0,39086.0,0.1]
[1645854348024,1.3,39087.0,39081.0,0.00556552]
[1645854348321,0.06397787,39081.0,39079.0,1.39776]
[1645854348521,0.08930787,39081.0,39079.0,0.11455484]
[1645854348722,0.02533,39079.0,39073.0,0.0021]
[1645854348925,0.18487389,39077.0,39073.0,0.0021]
[1645854349121,0.21020389,39077.0,39073.0,0.0021]
[1645854349321,0.08931187,39074.0,39069.0,0.02931367]
[1645854349523,0.02533,39073.0,39070.0,0.04991737]
[1645854349723,0.17533,39073.0,39070.0,0.04991737]
[1645854350078,0.02533,39070.0,39067.0,0.07762428]
[1645854350472,0.02533,39070.0,39067.0,0.03772428]
[1645854350672,0.02533,39070.0,39067.0,0.02272428]
[1645854350973,0.089325,39070.0,39067.0,0.02272428]
[1645854351172,0.001,39068.0,39067.0,0.02272428]
[1645854351376,0.17533,39064.0,39061.0,0.1069]
[1645854351584,0.17533,39064.0,39051.0,0.63200677]
[1645854351585,0.02056,39061.0,39051.0,0.63200677]
[1645854351774,0.02056,39058.0,39049.0,0.11417868]
[1645854351974,0.19205601,39059.0,39050.0,1.29513887]
[1645854351975,0.21738601,39059.0,39050.0,1.29513887]
[1645854352172,0.19205601,39059.0,39050.0,1.26818]
[1645854352373,0.19205601,39059.0,39051.0,0.02695772]
[1645854352674,0.73838631,39059.0,39051.0,0.02695772]
[1645854352873,0.73838631,39059.0,39051.0,0.02195772]
[1645854353172,0.73838631,39059.0,39050.0,0.76818]
[1645854353672,0.19205601,39059.0,39050.0,0.76818]
[1645854353922,0.94655601,39059.0,39050.0,0.76318]
[1645854354126,0.94655601,39059.0,39051.0,0.00656552]
[1645854354524,0.94655601,39059.0,39050.0,0.86318]
[1645854354923,0.94655601,39059.0,39050.0,0.85818]
[1645854355323,1.47130703,39059.0,39050.0,0.85818]
[1645854355525,0.20461746,39054.0,39050.0,0.85818]
[1645854355724,0.06401531,39053.0,39050.0,0.85818]
[1645854356123,0.06401531,39053.0,39050.0,0.97218]
[1645854356628,0.06401531,39053.0,39050.0,0.97250132]
[1645854357670,0.06401531,39053.0,39050.0,0.9848444]
[1645854357870,0.06401531,39053.0,39050.0,0.98515401]
[1645854358471,0.05544765,39053.0,39050.0,0.98515401]
[1645854358771,0.05544765,39053.0,39050.0,0.9848444]
[1645854359177,0.05544765,39053.0,39050.0,0.98500702]
[1645854360170,0.05544765,39053.0,39050.0,0.9848444]
[1645854360373,0.05544765,39053.0,39050.0,0.98500702]
[1645854361071,0.05476573,39053.0,39050.0,0.98500702]
[1645854361318,0.05476573,39053.0,39050.0,0.9848444]
[1645854361519,0.05476573,39053.0,39050.0,0.98500702]
[1645854362120,0.05476573,39053.0,39050.0,1.75810702]
[1645854362522,0.06400605,39058.0,39051.0,0.7731]
[1645854363521,0.06400605,39058.0,39051.0,0.4731]
[1645854363722,0.06400605,39058.0,39050.0,1.8219454]
[1645854363923,0.7545,39059.0,39053.0,0.00033205]
[1645854364329,0.7545,39059.0,39053.0,0.00689757]
[1645854364523,0.001,39068.0,39053.0,0.18557657]
[1645854364723,0.001,39068.0,39055.0,0.7731]
[1645854364924,0.001,39068.0,39055.0,1.0236]
[1645854365174,0.06399044,39067.0,39059.0,0.00033202]
[1645854365376,0.001,39068.0,39059.0,0.00033202]
[1645854365574,0.001,39068.0,39060.0,0.0507]
[1645854365772,0.001,39068.0,39061.0,0.7731]
[1645854365973,0.001,39068.0,39062.0,0.2505]
[1645854366373,0.001,39068.0,39063.0,0.05]
[1645854366878,0.001,39068.0,39063.0,0.1007]
[1645854367675,0.001,39068.0,39064.0,0.063976]
[1645854367974,0.001,39068.0,39065.0,0.0507]
[1645854368175,0.00077213,39068.0,39065.0,0.0507]
[1645854368475,0.00077213,39068.0,39066.0,0.77293]
[1645854368677,0.00077213,39068.0,39066.0,0.87293]
[1645854368930,0.00077213,39068.0,39067.0,0.0507]
[1645854369529,0.00077213,39068.0,39067.0,0.2505]
[1645854369926,0.00077213,39068.0,39067.0,1.0236]
[1645854370129,0.00077213,39068.0,39067.0,0.2505]
[1645854370326,0.00077213,39068.0,39067.0,1.02341]
[1645854371529,0.00077213,39068.0,39067.0,0.82361]
[1645854372571,0.00077213,39068.0,39067.0,0.82291]
[1645854372774,0.00077213,39068.0,39067.0,0.77291]
[1645854373175,0.00077213,39068.0,39067.0,0.76791]
[1645854374174,0.00077213,39068.0,39067.0,0.86791]
[1645854376180,0.00065609,39068.0,39067.0,0.86791]
[1645854376429,0.00065609,39068.0,39067.0,1.11841]
[1645854376832,0.00065609,39068.0,39067.0,1.99807552]
[1645854377029,1.0066,39075.0,39069.0,0.7731]
[1645854377230,1.0066,39075.0,39074.0,0.1998]
[1645854377433,1.0066,39075.0,39074.0,0.2505]
[1645854377630,1.0066,39075.0,39074.0,0.3631644]
[1645854377830,1.0066,39075.0,39074.0,1.1409344]
[1645854378229,1.0066,39075.0,39074.0,1.14749992]
[1645854378828,1.0066,39075.0,39074.0,1.92059992]
[1645854379029,1.0066,39075.0,39074.0,1.97455592]
[1645854379934,1.0066,39075.0,39074.0,2.01228]
[1645854380175,1.0066,39075.0,39074.0,2.51228]
[1645854380779,1.0066,39075.0,39074.0,2.62628]
[1645854381178,1.0066,39075.0,39074.0,1.85318]
[1645854381577,1.0066,39075.0,39074.0,2.562324]
[1645854381978,1.0066,39075.0,39074.0,1.739179]
[1645854382177,1.0066,39075.0,39074.0,2.512279]
[1645854382779,1.0066,39075.0,39074.0,1.739179]
[1645854382979,1.0076,39075.0,39074.0,1.739179]
[1645854383381,1.0076,39075.0,39074.0,1.73261348]
[1645854383581,1.0076,39075.0,39074.0,1.66865848]
[1645854384323,0.86305746,39075.0,39074.0,1.78265848]
[1645854384523,0.001,39075.0,39074.0,1.78265848]
[1645854385025,0.001,39075.0,39074.0,1.66865848]
[1645854385325,0.001,39075.0,39074.0,2.44175848]
[1645854385922,0.001,39075.0,39074.0,1.66865848]
[1645854386930,0.001,39075.0,39074.0,1.57865848]
[1645854387578,0.001,39075.0,39074.0,1.32815848]
[1645854388085,0.001,39075.0,39074.0,0.99215848]
[1645854388377,0.001,39075.0,39074.0,1.04215848]
[1645854391822,0.001,39075.0,39074.0,1.04168625]
[1645854396075,0.00090001,39075.0,39074.0,1.86548625]
[1645854396271,0.00090001,39075.0,39074.0,1.10260625]
[1645854396472,0.00090001,39075.0,39074.0,0.98860625]
[1645854396874,0.00090001,39075.0,39074.0,1.10260625]
[1645854397073,0.00090001,39075.0,39074.0,1.75148625]
[1645854397273,0.00090001,39075.0,39074.0,2.57550625]
[1645854397473,0.00090001,39075.0,39074.0,2.46150625]
[1645854399026,1.00250001,39081.0,39076.0,0.7731]
[1645854399228,1.0066,39085.0,39078.0,0.7731]
[1645854399426,1.0066,39085.0,39079.0,0.0507]
[1645854399626,1.0066,39085.0,39079.0,0.8238]
[1645854399827,1.0066,39085.0,39079.0,0.8738]
[1645854400026,1.0066,39085.0,39079.0,0.1007]
[1645854400227,0.75383469,39082.0,39079.0,0.1007]
[1645854400429,0.75383469,39082.0,39079.0,0.30116]
[1645854400632,0.001,39080.0,39079.0,0.30116]
[1645854400932,0.001,39080.0,39079.0,1.57884]
[1645854401130,0.001,39080.0,39079.0,1.37838]
[1645854403274,0.001,39080.0,39079.0,1.32768]
[1645854403479,0.00047735,39080.0,39079.0,1.32768]
[1645854404678,0.00047735,39080.0,39079.0,0.82768]
[1645854405279,0.00047735,39080.0,39079.0,0.77768]
[1645854406621,0.00047735,39080.0,39079.0,0.75863447]
[1645854406822,0.00047735,39080.0,39079.0,0.75871768]
[1645854407320,0.20047735,39080.0,39079.0,0.75871768]
[1645854408221,0.00047735,39080.0,39079.0,0.85871768]
[1645854412676,0.00047735,39080.0,39079.0,0.86399416]
[1645854413480,0.00047735,39080.0,39075.0,0.0126644]
[1645854413678,0.00047735,39080.0,39078.0,0.00029016]
[1645854413932,0.35,39079.0,39078.0,0.00029016]
[1645854414327,0.37533,39079.0,39078.0,0.00029016]
[1645854414526,0.35,39079.0,39078.0,0.00029016]
[1645854414726,0.35,39079.0,39075.0,0.0126644]
[1645854414927,0.35,39079.0,39077.0,0.00029093]
[1645854415328,0.15,39078.0,39077.0,0.00029093]
[1645854415830,0.38709885,39078.0,39075.0,0.0126644]
[1645854416028,0.15,39076.0,39075.0,0.0126644]
[1645854416431,0.37533,39076.0,39075.0,0.0126644]
[1645854418067,0.35,39076.0,39075.0,0.0126644]
[1645854419072,0.0639773,39077.0,39075.0,0.0126644]
[1645854419969,0.0639773,39077.0,39075.0,0.0076644]
[1645854420371,0.02533,39079.0,39075.0,0.0076644]
[1645854420571,0.02533,39079.0,39075.0,0.0026644]
[1645854420973,0.37580735,39080.0,39075.0,0.00295523]
[1645854421730,0.35047735,39080.0,39075.0,0.00295523]
[1645854421928,0.35047735,39080.0,39075.0,0.0026644]
[1645854422125,0.35047735,39080.0,39076.0,0.00029083]
[1645854423227,0.001,39077.0,39075.0,0.0026644]
[1645854423426,0.001,39077.0,39076.0,0.00029083]
[1645854423826,0.06497777,39077.0,39076.0,0.00029083]
[1645854424425,0.06497777,39077.0,39075.0,0.0026644]
[1645854424626,0.06497777,39077.0,39075.0,0.00029083]
[1645854425274,0.06497777,39077.0,39073.0,0.52488823]
[1645854426078,0.06497777,39077.0,39073.0,1.04720703]
[1645854426375,0.06497777,39077.0,39074.0,0.431933]
[1645854426675,0.06497777,39077.0,39073.0,0.09295523]
[1645854427877,0.001,39077.0,39074.0,0.431933]
[1645854428078,0.001,39077.0,39075.0,0.0507]
[1645854428277,0.001,39077.0,39075.0,1.3407588]
[1645854428477,0.001,39077.0,39075.0,1.250373]
[1645854428679,0.001,39077.0,39075.0,0.91844]
[1645854428933,0.001,39077.0,39076.0,0.52211358]
[1645854429132,0.001,39077.0,39076.0,1.3573291]
[1645854429331,0.00078532,39077.0,39076.0,1.3573291]
[1645854429534,0.00078532,39077.0,39076.0,1.60831552]
[1645854430832,0.00078532,39077.0,39076.0,2.10831552]
[1645854431433,0.00078532,39077.0,39076.0,1.33521552]
[1645854431833,1.00286267,39082.0,39077.0,1.15]
[1645854432037,1.0066,39086.0,39078.0,0.98285595]
[1645854432234,1.0066,39086.0,39078.0,1.08285595]
[1645854432571,1.0066,39086.0,39078.0,1.85595595]
[1645854432972,1.0066,39086.0,39079.0,0.20052]
[1645854433183,0.58628161,39085.0,39080.0,0.0507]